bitfinex/quotes_SOLUSD_20240716
["timestamp","ask_amount","ask_price","bid_price","bid_amount"]
[1721132281027,10.0,157.2,157.14,1.2725156]
[1721132281343,6.3623,157.18,157.14,1.2725156]
[1721132281528,10.0,157.22,157.14,1.2725156]
[1721132281855,16.3608,157.22,157.16,6.3628]
[1721132282027,10.0,157.24,157.17,1.27233788]
[1721132282264,10.0,157.24,157.14,40.3922693]
[1721132282455,6.3604,157.23,157.19,15.6954]
[1721132282948,6.3597,157.24,157.2,6.3613]
[1721132283121,6.3593,157.25,157.2,6.3613]
[1721132283554,6.3597,157.24,157.19,22.0571]
[1721132283722,10.0,157.28,157.2,15.9028]
[1721132283925,6.359,157.26,157.2,17.17475852]
[1721132284142,10.0,157.28,157.2,15.9028]
[1721132284354,6.3596,157.25,157.2,22.264]
[1721132284736,6.3589,157.26,157.21,6.3607]
[1721132285034,6.3585,157.27,157.22,6.3605]
[1721132285960,10.0,157.28,157.2,15.9028]
[1721132286145,6.3597,157.24,157.2,22.264]
[1721132286464,6.3597,157.24,157.19,22.057]
[1721132286745,6.3594,157.25,157.2,6.3612]
[1721132287158,6.3589,157.26,157.21,6.3608]
[1721132287460,6.36,157.24,157.19,37.9608]
[1721132287954,6.3603,157.23,157.19,31.5992]
[1721132288124,16.3594,157.25,157.2,6.3612]
[1721132288323,45.0,157.24,157.2,6.3612]
[1721132288644,51.3597,157.24,157.19,37.9608]
[1721132288962,6.3593,157.25,157.19,31.5992]
[1721132289143,0.17,157.26,157.21,6.3608]
[1721132289144,6.359,157.26,157.21,6.3608]
[1721132289475,10.0,157.29,157.24,6.3593]
[1721132289627,10.0,157.29,157.23,22.2598]
[1721132289822,6.3585,157.27,157.22,6.3604]
[1721132290029,6.3595,157.25,157.2,22.2639]
[1721132290533,6.3597,157.24,157.19,22.057]
[1721132290728,6.3602,157.23,157.19,15.6954]
[1721132291029,10.0,157.26,157.2,6.3612]
[1721132291234,45.0,157.25,157.21,6.3607]
[1721132291535,45.0,157.25,157.19,31.599]
[1721132291733,51.3593,157.25,157.19,31.599]
[1721132292057,45.0,157.25,157.21,6.3608]
[1721132292546,51.3593,157.25,157.2,7.63327733]
[1721132292749,45.0,157.25,157.19,31.599]
[1721132293877,45.0,157.25,157.21,6.3608]
[1721132294051,16.3591,157.26,157.22,6.3604]
[1721132294253,16.3591,157.26,157.21,6.3608]
[1721132294773,6.3594,157.25,157.2,6.3612]
[1721132295196,16.3597,157.24,157.19,37.9606]
[1721132295356,6.3597,157.24,157.19,37.9606]
[1721132295558,6.3597,157.24,157.19,31.599]
[1721132295761,6.3597,157.24,157.19,37.9604]
[1721132296079,10.0,157.28,157.21,6.3608]
[1721132296250,10.0,157.28,157.22,6.3601]
[1721132296451,10.0,157.27,157.2,6.3612]
[1721132296656,6.3595,157.25,157.2,6.3612]
[1721132296870,10.0,157.27,157.22,6.3602]
[1721132296871,6.3586,157.27,157.22,6.3602]
[1721132297059,6.3582,157.28,157.23,6.36]
[1721132297371,10.0,157.29,157.25,6.3592]
[1721132297581,16.3576,157.29,157.24,6.3594]
[1721132297781,16.3576,157.29,157.24,22.2582]
[1721132297969,6.3576,157.29,157.24,22.2582]
[1721132298279,10.0,157.29,157.21,15.9021]
[1721132298691,6.3586,157.27,157.21,15.9021]
[1721132298888,10.0,157.31,157.21,15.9021]
[1721132299087,6.3582,157.28,157.23,6.3597]
[1721132299386,6.3577,157.29,157.24,6.3594]
[1721132299555,6.3581,157.28,157.23,22.2595]
[1721132300297,6.3585,157.27,157.23,15.8995]
[1721132300487,6.3582,157.28,157.23,15.8995]
[1721132300667,6.3578,157.29,157.23,15.8995]
[1721132300869,51.3574,157.3,157.25,6.3589]
[1721132301373,51.3574,157.3,157.25,15.5302]
[1721132301374,45.0,157.3,157.25,15.5302]
[1721132301583,10.0,157.29,157.25,15.5302]
[1721132301976,45.0,157.3,157.25,15.5302]
[1721132302472,6.3577,157.29,157.25,37.7867]
[1721132302664,6.3581,157.28,157.25,15.5302]
[1721132303256,6.3585,157.27,157.25,15.5302]
[1721132303481,45.0,157.3,157.25,15.5302]
[1721132303874,6.3593,157.25,157.21,24.02005593]
[1721132304077,10.0,157.25,157.21,22.7484]
[1721132304400,16.3594,157.25,157.21,16.3877]
[1721132304701,6.3599,157.24,157.21,16.3877]
[1721132305987,16.3593,157.25,157.21,16.3877]
[1721132306186,10.0,157.27,157.21,22.7485]
[1721132306389,16.3594,157.25,157.21,16.3877]
[1721132306581,10.0,157.25,157.21,16.3877]
[1721132306790,6.3597,157.24,157.21,16.3877]
[1721132307764,55.0,157.23,157.17,15.1817]
[1721132308268,6.3607,157.22,157.17,21.5442]
[1721132308465,55.0,157.23,157.18,6.3619]
[1721132308466,61.3602,157.23,157.18,6.3619]
[1721132308683,45.0,157.23,157.2,6.3611]
[1721132308893,51.3597,157.24,157.19,6.3616]
[1721132309098,16.3607,157.22,157.18,15.9045]
[1721132309773,6.3607,157.22,157.18,22.2666]
[1721132310383,6.3601,157.23,157.18,22.2666]
[1721132310783,45.0,157.24,157.18,15.9045]
[1721132310989,45.0,157.25,157.2,6.361]
[1721132311371,51.3596,157.25,157.2,6.361]
[1721132311571,6.3596,157.25,157.2,6.361]
[1721132311791,6.3596,157.25,157.2,6.3612]
[1721132312099,6.3602,157.23,157.18,22.2664]
[1721132312274,10.0,157.24,157.18,15.9045]
[1721132312475,6.3603,157.23,157.18,22.2665]
[1721132312885,16.3606,157.22,157.17,15.1817]
[1721132313095,6.3609,157.21,157.17,21.5441]
[1721132313791,10.0,157.22,157.17,21.5441]
[1721132314003,16.3606,157.22,157.17,21.5441]
[1721132314606,6.361,157.21,157.17,21.5441]
[1721132314807,10.0,157.2,157.14,6.3633]
[1721132315093,45.0,157.19,157.15,6.3632]
[1721132315399,6.361,157.21,157.17,6.3625]
[1721132315767,16.3614,157.2,157.16,22.2695]
[1721132315977,10.0,157.2,157.16,22.2695]
[1721132316277,16.3606,157.22,157.18,6.3621]
[1721132316493,10.0,157.22,157.18,6.3621]
[1721132317166,6.3601,157.23,157.18,6.3621]
[1721132317606,10.0,157.24,157.18,15.9049]
[1721132317891,6.3596,157.25,157.2,6.3611]
[1721132318100,6.3596,157.25,157.2,22.2638]
[1721132318477,6.3597,157.24,157.2,22.2638]
[1721132318691,10.0,157.26,157.2,15.9027]
[1721132318692,6.3601,157.23,157.2,15.9027]
[1721132318894,6.3601,157.23,157.19,7.6339072]
[1721132319090,6.3601,157.23,157.19,6.3616]
[1721132319505,10.0,157.26,157.19,6.3616]
[1721132319506,6.3597,157.24,157.19,6.3616]
[1721132319689,6.3602,157.23,157.18,6.362]
[1721132319887,6.3606,157.22,157.18,6.362]
[1721132320392,6.3606,157.22,157.18,6.3621]
[1721132320569,6.3609,157.21,157.17,15.9056]
[1721132321381,10.0,157.2,157.15,6.3632]
[1721132321582,6.3619,157.19,157.14,22.2722]
[1721132322100,6.3622,157.18,157.14,15.9086]
[1721132322992,6.3622,157.18,157.14,22.2723]
[1721132323201,6.3618,157.19,157.14,22.2723]
[1721132323402,6.3622,157.18,157.14,15.9086]
[1721132324111,6.3618,157.19,157.14,22.2722]
[1721132324287,6.3621,157.18,157.14,15.9086]
[1721132324488,10.0,157.18,157.13,15.4415]
[1721132324710,6.3626,157.17,157.13,15.4415]
[1721132325705,10.0,157.22,157.13,32.62422872]
[1721132325883,6.3614,157.2,157.16,6.3629]
[1721132326078,6.3614,157.2,157.15,22.2713]
[1721132326584,6.361,157.21,157.17,6.3625]
[1721132326982,6.3601,157.23,157.18,1.27238041]
[1721132327290,6.3601,157.23,157.19,6.3616]
[1721132327699,6.3601,157.23,157.18,7.63438041]
[1721132328914,6.3601,157.23,157.18,6.362]
[1721132329708,6.361,157.21,157.17,15.9055]
[1721132329881,6.3613,157.2,157.15,6.3632]
[1721132330716,6.3617,157.19,157.15,6.3632]
[1721132331213,6.3614,157.2,157.15,6.3632]
[1721132331393,6.3614,157.2,157.16,6.3628]
[1721132331590,6.361,157.21,157.16,6.3628]
[1721132331793,6.361,157.21,157.17,6.3624]
[1721132332215,6.361,157.21,157.16,22.2697]
[1721132332713,6.3605,157.22,157.16,15.9069]
[1721132332888,6.3602,157.23,157.18,6.362]
[1721132333093,6.3606,157.22,157.19,1.27218254]
[1721132333318,10.0,157.24,157.17,6.3624]
[1721132333618,6.3605,157.22,157.17,6.3624]
[1721132333818,6.3605,157.22,157.18,7.6342616]
[1721132334022,15.8984,157.25,157.17,6.3624]
[1721132334023,6.361,157.21,157.17,6.3624]
[1721132334536,6.3614,157.2,157.16,22.2698]
[1721132334688,6.361,157.21,157.16,22.2698]
[1721132335620,6.3614,157.2,157.16,15.9069]
[1721132335800,6.3614,157.2,157.13,66.3802]
[1721132335801,6.3619,157.19,157.14,6.3636]
[1721132336006,6.3619,157.19,157.13,31.3512]
[1721132336212,6.3619,157.19,157.14,20.0]
[1721132336422,16.3614,157.2,157.15,6.3632]
[1721132336719,6.3617,157.19,157.15,6.3632]
[1721132336914,6.3614,157.2,157.15,6.3632]
[1721132337128,6.3614,157.2,157.16,6.3629]
[1721132337491,6.3614,157.2,157.15,22.2713]
[1721132338835,6.361,157.21,157.16,6.3628]
[1721132340511,16.3605,157.22,157.17,6.3624]
[1721132340715,10.0,157.24,157.14,39.12]
[1721132340930,10.0,157.24,157.2,6.361]
[1721132341130,6.3603,157.23,157.19,15.9036]
[1721132341347,10.0,157.24,157.18,6.3617]
[1721132341512,6.3605,157.22,157.17,6.3624]
[1721132341718,6.3602,157.23,157.19,6.3617]
[1721132342319,6.3602,157.23,157.18,6.3619]
[1721132342520,6.3605,157.22,157.17,6.3623]
[1721132343027,16.361,157.21,157.16,22.2692]
[1721132343511,6.361,157.21,157.16,22.2692]
[1721132343718,6.3606,157.22,157.17,6.3625]
[1721132344024,45.0,157.21,157.17,6.3625]
[1721132344531,6.3606,157.22,157.17,6.3625]
[1721132344933,6.3602,157.23,157.16,15.9065]
[1721132345119,6.3602,157.23,157.16,17.17872613]
[1721132345322,6.3602,157.23,157.19,6.3617]
[1721132345544,6.3598,157.24,157.19,6.3617]
[1721132345737,51.3601,157.23,157.19,6.3617]
[1721132346050,10.0,157.25,157.2,15.9026]
[1721132346211,49.09632235,157.28,157.2,22.2638]
[1721132346212,10.0,157.27,157.2,22.2638]
[1721132346547,10.0,157.27,157.22,6.3602]
[1721132346548,6.3587,157.27,157.22,6.3602]
[1721132346728,10.0,157.29,157.24,6.3596]
[1721132346729,16.3579,157.29,157.24,6.3596]
[1721132347040,6.3581,157.28,157.24,15.8988]
[1721132347635,6.3578,157.29,157.24,23.53018985]
[1721132348220,6.358,157.28,157.24,17.17058985]
[1721132348422,6.358,157.28,157.24,15.8988]
[1721132348821,6.3587,157.27,157.2,31.9096]
[1721132349019,6.359,157.26,157.2,38.2705]
[1721132349236,6.3601,157.23,157.2,16.0071]
[1721132349435,6.3601,157.23,157.18,6.362]
[1721132350326,10.0,157.25,157.17,15.9057]
[1721132350523,6.3609,157.21,157.17,15.9057]
[1721132350729,10.0,157.23,157.17,15.9057]
[1721132350946,10.0,157.2,157.14,15.9088]
[1721132351228,45.0,157.19,157.14,15.9088]
[1721132352044,6.3621,157.18,157.14,15.9088]
[1721132352424,6.3621,157.18,157.13,6.364]
[1721132352827,51.3618,157.19,157.14,6.3637]
[1721132353633,6.3623,157.18,157.13,15.91]
[1721132354449,16.3623,157.18,157.13,15.91]
[1721132354762,6.3629,157.16,157.12,16.3418]
[1721132354951,10.0,157.18,157.12,16.3418]
[1721132355151,10.0,157.16,157.12,16.3418]
[1721132355347,10.0,157.18,157.12,17.61459048]
[1721132355545,6.3622,157.18,157.13,6.3641]
[1721132355734,16.3622,157.18,157.13,6.3641]
[1721132356134,10.0,157.18,157.12,32.2528]
[1721132356442,6.3629,157.16,157.12,32.2528]
[1721132356641,6.3624,157.18,157.12,32.2528]
[1721132356837,45.0,157.19,157.12,32.2528]
[1721132357133,6.3626,157.17,157.13,6.3641]
[1721132357333,6.3625,157.17,157.12,38.6172]
[1721132357551,16.3622,157.18,157.13,6.3641]
[1721132357736,6.3625,157.17,157.13,6.3641]
[1721132357942,16.3622,157.18,157.13,6.3641]
[1721132358147,6.3625,157.17,157.13,6.3641]
[1721132358452,6.3625,157.17,157.12,38.6172]
[1721132359254,61.363,157.16,157.12,32.2528]
[1721132359456,10.0,157.16,157.12,38.6172]
[1721132360469,16.3622,157.18,157.13,6.3641]
[1721132360960,16.3617,157.2,157.15,6.3632]
[1721132361138,6.3617,157.19,157.14,22.2724]
[1721132363536,10.0,157.22,157.15,1.27253451]
[1721132363843,10.0,157.22,157.13,6.641]
[1721132364239,10.0,157.22,157.14,15.9086]
[1721132364451,6.3618,157.19,157.15,1.27248555]
[1721132365145,6.3612,157.21,157.16,6.3629]
[1721132365344,10.0,157.22,157.16,6.3629]
[1721132365345,6.3606,157.22,157.16,15.907]
[1721132365655,10.0,157.24,157.16,15.907]
[1721132365656,6.3602,157.23,157.18,6.3621]
[1721132366563,6.3605,157.22,157.17,7.63475045]
[1721132366937,6.3609,157.21,157.17,7.63475045]
[1721132367144,6.3606,157.22,157.17,7.63475045]
[1721132368267,6.3609,157.21,157.17,7.63475045]
[1721132368854,6.3606,157.22,157.17,7.63475045]
[1721132369677,10.0,157.26,157.18,15.9047]
[1721132369975,16.1093,157.28,157.19,16.4277]
[1721132370152,16.1093,157.28,157.2,1.27201413]
[1721132370359,6.3596,157.25,157.2,7.63331413]
[1721132370862,6.3597,157.24,157.2,7.63331413]
[1721132371246,10.0,157.28,157.2,1.27201413]
[1721132371442,38.3331,157.31,157.21,1.27191008]
[1721132371443,10.0,157.3,157.21,1.27191008]
[1721132371860,10.0,157.3,157.24,15.8989]
[1721132372146,6.3584,157.28,157.23,6.3599]
[1721132372369,6.3584,157.28,157.24,1.27172305]
[1721132372754,6.3584,157.27,157.22,6.3603]
[1721132373476,10.0,157.3,157.23,1.27172309]
[1721132373666,25.8919,157.32,157.24,1.27170488]
[1721132373967,25.8919,157.32,157.21,35.0216]
[1721132373968,6.3581,157.28,157.23,6.3599]
[1721132374169,6.3581,157.28,157.24,1.27171489]
[1721132374565,6.3581,157.28,157.23,6.3599]
[1721132375573,6.3581,157.28,157.24,1.27172564]
[1721132376473,6.3577,157.29,157.24,7.63132564]
[1721132377072,45.0,157.31,157.26,6.3587]
[1721132377276,6.3572,157.3,157.27,1.27160414]
[1721132377648,6.3561,157.33,157.28,6.358]
[1721132377848,22.4364,157.35,157.27,17.16750414]
[1721132378050,6.3565,157.32,157.27,23.52570414]
[1721132378878,6.356,157.34,157.29,6.3576]
[1721132379371,10.0,157.34,157.27,22.419]
[1721132379601,10.0,157.34,157.26,15.4741]
[1721132379602,6.3576,157.29,157.26,15.4741]
[1721132379777,10.0,157.34,157.26,15.4741]
[1721132379778,6.3573,157.3,157.26,15.4741]
[1721132380096,6.3577,157.29,157.26,15.4741]
[1721132380267,6.358,157.28,157.26,15.4741]
[1721132380573,6.3578,157.29,157.26,15.4741]
[1721132380762,6.3578,157.29,157.24,22.2582]
[1721132381470,10.0,157.31,157.26,6.3586]
[1721132381651,6.3567,157.32,157.27,6.3584]
[1721132381852,10.0,157.33,157.25,1.27168757]
[1721132382159,6.3565,157.32,157.28,15.8945]
[1721132382361,10.0,157.33,157.28,15.8945]
[1721132382663,16.356,157.33,157.28,22.2522]
[1721132382872,10.0,157.33,157.29,6.3576]
[1721132383175,6.3557,157.34,157.29,6.3576]
[1721132383576,10.0,157.33,157.28,15.8945]
[1721132383780,6.3569,157.31,157.26,6.3587]
[1721132383967,6.3557,157.34,157.27,15.8957]
[1721132384169,10.0,157.33,157.28,6.358]
[1721132384383,10.0,157.33,157.27,15.8957]
[1721132384384,6.3564,157.32,157.27,22.254]
[1721132386771,6.3561,157.33,157.28,6.358]
[1721132387282,32.043,157.39,157.35,6.3548]
[1721132387480,10.0,157.39,157.3,7.89710118]
[1721132387690,10.0,157.39,157.34,15.8882]
[1721132387859,10.0,157.41,157.36,15.8864]
[1721132388064,16.3528,157.41,157.36,22.241]
[1721132388279,6.3524,157.43,157.37,6.3544]
[1721132388482,6.3529,157.41,157.36,22.2411]
[1721132388995,6.3529,157.41,157.36,15.8864]
[1721132389156,6.3533,157.4,157.36,15.8864]
[1721132389558,16.3533,157.4,157.35,6.3551]
[1721132391367,10.0,157.4,157.35,6.3551]
[1721132391890,10.0,157.44,157.36,6.3547]
[1721132391891,16.3525,157.42,157.36,6.3547]
[1721132392082,51.3528,157.41,157.36,6.3547]
[1721132392486,16.3532,157.4,157.35,15.8876]
[1721132392790,45.0,157.39,157.35,22.2425]
[1721132393690,10.0,157.42,157.35,15.8876]
[1721132393990,10.0,157.44,157.4,6.3532]
[1721132394288,16.3508,157.46,157.41,6.3527]
[1721132394487,22.1808,157.47,157.4,15.8823]
[1721132394692,10.0,157.48,157.43,6.3519]
[1721132394693,16.3503,157.48,157.43,6.3519]
[1721132395169,10.0,157.46,157.42,6.3523]
[1721132395492,16.3508,157.46,157.41,6.3527]
[1721132396571,16.3519,157.44,157.37,22.5272]
[1721132396773,45.0,157.43,157.39,6.3533]
[1721132397084,45.0,157.43,157.39,15.8837]
[1721132397388,10.0,157.44,157.41,15.8812]
[1721132397585,10.0,157.44,157.4,6.3529]
[1721132397791,16.3516,157.44,157.39,6.3535]
[1721132398418,10.0,157.44,157.41,15.8818]
[1721132398582,10.0,157.44,157.4,6.3529]
[1721132398983,16.3516,157.44,157.39,6.3535]
[1721132399890,10.0,157.44,157.4,6.3531]
[1721132400488,45.0,157.43,157.38,15.8844]
[1721132400806,45.0,157.44,157.41,6.3528]
[1721132401512,10.0,157.46,157.43,6.3518]
[1721132401819,10.0,157.46,157.42,22.2329]
[1721132402145,16.35,157.48,157.43,6.3519]
[1721132402478,10.0,157.48,157.42,15.8806]
[1721132402681,10.0,157.48,157.43,6.3519]
[1721132402877,16.3501,157.48,157.43,6.3519]
[1721132403108,6.3504,157.47,157.42,22.2328]
[1721132403303,16.3508,157.46,157.42,15.8806]
[1721132403508,6.5204,157.47,157.42,22.2329]
[1721132403684,16.3501,157.48,157.43,6.3518]
[1721132404012,10.0,157.46,157.42,15.8806]
[1721132404308,10.0,157.46,157.42,22.2328]
[1721132404706,6.3504,157.47,157.42,22.2328]
[1721132404913,45.0,157.46,157.42,22.2328]
[1721132406204,16.3501,157.48,157.42,15.8806]
[1721132406426,45.0,157.47,157.42,15.8806]
[1721132406791,51.3504,157.47,157.42,22.2329]
[1721132406992,10.0,157.46,157.41,6.3527]
[1721132407225,16.3509,157.46,157.42,6.3523]
[1721132407696,10.0,157.46,157.42,6.3523]
[1721132407891,51.3505,157.47,157.42,6.3523]
[1721132408098,45.0,157.47,157.43,6.352]
[1721132408306,10.0,157.46,157.43,6.352]
[1721132408504,10.0,157.46,157.42,6.3523]
[1721132408813,51.3504,157.47,157.42,6.3523]
[1721132409199,10.0,157.48,157.43,15.8798]
[1721132409399,16.35,157.48,157.43,15.8798]
[1721132409636,10.0,157.48,157.44,6.3515]
[1721132410201,16.3492,157.5,157.43,15.8798]
[1721132410418,10.0,157.5,157.46,6.3508]
[1721132410612,10.0,157.5,157.45,22.2286]
[1721132410803,10.0,157.48,157.44,6.3516]
[1721132411120,10.0,157.48,157.42,15.8804]
[1721132411121,6.35,157.48,157.42,15.8804]
[1721132411420,16.3493,157.5,157.45,6.3512]
[1721132411624,45.0,157.49,157.45,6.3512]
[1721132411820,10.0,157.48,157.44,22.2302]
[1721132412318,45.0,157.49,157.45,6.3512]
[1721132413114,10.0,157.5,157.47,6.3503]
[1721132413431,16.3484,157.52,157.47,6.3503]
[1721132413735,16.3484,157.52,157.46,15.8767]
[1721132413736,45.0,157.51,157.48,6.3499]
[1721132413932,45.0,157.51,157.47,6.3503]
[1721132414412,10.0,157.54,157.44,31.7578]
[1721132414618,16.3477,157.54,157.49,6.3495]
[1721132415013,16.3477,157.54,157.44,31.7578]
[1721132415014,6.3485,157.52,157.47,15.8753]
[1721132415213,10.0,157.52,157.47,15.8753]
[1721132415737,16.3486,157.52,157.47,22.2256]
[1721132416322,6.3481,157.53,157.48,6.3499]
[1721132416918,10.0,157.52,157.47,15.8753]
[1721132417118,6.3496,157.49,157.45,6.3509]
[1721132417331,6.3489,157.51,157.44,15.879]
[1721132417811,10.0,157.49,157.44,15.879]
[1721132418238,10.0,157.51,157.46,15.8768]
[1721132418531,10.0,157.49,157.43,15.8795]
[1721132418727,10.0,157.49,157.46,6.3507]
[1721132418902,10.0,157.52,157.4,72.2491]
[1721132419107,16.3485,157.52,157.47,22.2259]
[1721132419508,10.0,157.52,157.47,22.2259]
[1721132419715,6.3488,157.51,157.46,6.3507]
[1721132420422,16.3494,157.5,157.45,6.3508]
[1721132420621,10.0,157.5,157.46,6.3505]
[1721132420817,6.3489,157.51,157.46,6.3505]
[1721132421008,6.3489,157.51,157.47,6.3503]
[1721132421623,6.3489,157.51,157.44,15.8782]
[1721132421624,6.3489,157.51,157.46,6.3507]
[1721132421804,16.3486,157.52,157.47,6.3503]
[1721132422830,10.0,157.54,157.4,72.2491]
[1721132423130,6.3484,157.52,157.47,6.3502]
[1721132423331,10.0,157.51,157.45,15.8773]
[1721132423541,16.3489,157.51,157.46,6.3505]
[1721132424012,6.3492,157.5,157.45,22.2284]
[1721132424207,10.0,157.51,157.45,15.8773]
[1721132424723,10.0,157.51,157.45,6.351]
[1721132424724,6.3493,157.5,157.45,6.351]
[1721132424921,10.0,157.48,157.43,6.3516]
[1721132425126,10.0,157.48,157.44,6.3515]
[1721132425333,55.17,157.47,157.41,6.3528]
[1721132425639,61.6905,157.47,157.42,6.3523]
[1721132426336,61.6905,157.47,157.42,22.2329]
[1721132426510,10.0,157.47,157.42,15.8806]
[1721132426828,22.3326,157.49,157.42,15.8806]
[1721132426829,38.6823,157.49,157.44,6.3515]
[1721132427031,32.0191,157.49,157.44,6.3515]
[1721132427212,32.0191,157.49,157.42,15.8806]
[1721132427213,6.3508,157.46,157.42,15.8806]
[1721132427543,6.3509,157.46,157.42,15.8806]
[1721132428249,16.3505,157.47,157.42,22.2329]
[1721132428624,6.3512,157.45,157.4,6.3529]
[1721132428930,6.3512,157.45,157.39,15.8838]
[1721132428931,16.3512,157.45,157.41,6.3528]
[1721132429229,10.0,157.45,157.41,6.3528]
[1721132429833,16.3512,157.45,157.41,6.3528]
[1721132430514,10.0,157.45,157.41,6.3528]
[1721132430916,16.3505,157.47,157.42,6.3523]
[1721132431123,45.0,157.46,157.43,6.352]
[1721132431427,16.3504,157.47,157.43,22.2315]
[1721132431617,0.17,157.48,157.42,6.3521]
[1721132431618,10.0,157.45,157.42,6.3521]
[1721132432223,10.0,157.45,157.41,6.3527]
[1721132432813,10.0,157.43,157.4,22.2356]
[1721132433416,45.0,157.44,157.41,6.3526]
[1721132433613,10.0,157.44,157.4,22.2355]
[1721132434436,16.539,157.46,157.42,6.3523]
[1721132434639,6.3507,157.47,157.42,6.3523]
[1721132434945,10.0,157.45,157.42,22.2328]
[1721132435132,10.0,157.45,157.36,34.7168]
[1721132435133,16.3513,157.45,157.4,6.3531]
[1721132435319,51.3509,157.46,157.41,6.3528]
[1721132435647,16.3512,157.45,157.41,22.2341]
[1721132435834,16.3512,157.45,157.4,6.3532]
[1721132435835,6.3516,157.44,157.4,6.3532]
[1721132436050,10.0,157.43,157.39,6.3535]
[1721132436253,10.0,157.43,157.38,15.8845]
[1721132437057,10.0,157.43,157.4,6.3531]
[1721132437349,10.0,157.45,157.41,6.3525]
[1721132437529,45.0,157.44,157.4,22.2354]
[1721132438348,10.0,157.47,157.4,15.8823]
[1721132438544,10.0,157.47,157.42,6.3521]
[1721132438545,61.5205,157.47,157.42,6.3521]
[1721132438732,10.0,157.45,157.42,6.3521]
[1721132439768,61.5204,157.47,157.42,6.3521]
[1721132440560,61.5204,157.47,157.43,6.3519]
[1721132440561,55.17,157.47,157.43,6.3519]
[1721132440945,55.17,157.47,157.42,15.8807]
[1721132440946,55.17,157.47,157.42,22.233]
[1721132441333,55.17,157.47,157.39,1.27036904]
[1721132441334,55.17,157.47,157.4,6.3528]
[1721132441539,6.3508,157.46,157.41,6.3525]
[1721132441731,6.3508,157.46,157.39,15.8836]
[1721132441732,55.17,157.47,157.39,15.8836]
[1721132441951,45.17,157.47,157.41,15.8818]
[1721132442155,16.5206,157.47,157.42,6.3521]
[1721132442351,45.0,157.46,157.41,15.8818]
[1721132442545,16.5205,157.47,157.42,6.352]
[1721132442546,16.3505,157.47,157.42,6.352]
[1721132443069,6.3509,157.46,157.41,22.2344]
[1721132443238,6.3512,157.45,157.41,22.2344]
[1721132444434,6.3512,157.45,157.41,15.8818]
[1721132444634,16.3508,157.47,157.41,15.8818]
[1721132444837,6.3508,157.46,157.42,6.3521]
[1721132445166,6.3509,157.46,157.41,22.2346]
[1721132445873,55.0,157.45,157.36,15.5968]
[1721132446040,55.0,157.45,157.38,22.2383]
[1721132446041,16.3521,157.43,157.38,22.2383]
[1721132446238,16.3521,157.43,157.36,15.5968]
[1721132446239,10.0,157.41,157.36,21.9514]
[1721132446438,16.3531,157.41,157.36,6.3546]
[1721132447469,10.0,157.41,157.35,15.8875]
[1721132447639,10.0,157.39,157.36,6.3548]
[1721132448541,10.0,157.39,157.35,22.2426]
[1721132449348,10.0,157.39,157.36,6.3547]
[1721132450051,10.0,157.41,157.37,6.3543]
[1721132450367,10.0,157.41,157.38,6.3539]